bitfinex/quotes_BTCUSD_20241010
["timestamp","ask_amount","ask_price","bid_price","bid_amount"]
[1728521041885,0.28254031,60481.0,60480.0,0.165343]
[1728521041886,0.07703971,60481.0,60480.0,0.165343]
[1728521042162,0.0770402,60481.0,60480.0,0.165343]
[1728521042686,0.07603964,60481.0,60480.0,0.165343]
[1728521042925,0.07703964,60481.0,60480.0,0.165343]
[1728521044655,0.07803964,60481.0,60480.0,0.165343]
[1728521046367,0.07590364,60481.0,60480.0,0.165343]
[1728521046595,0.07803964,60481.0,60480.0,0.165343]
[1728521047683,0.07804847,60481.0,60480.0,0.165343]
[1728521048150,0.330703,60478.0,60474.0,0.01169544]
[1728521048373,0.081636,60475.0,60470.0,0.2483382]
[1728521048601,0.081636,60475.0,60461.0,0.000816]
[1728521048602,0.165375,60469.0,60465.0,0.165382]
[1728521048868,0.21464226,60469.0,60467.0,0.2483382]
[1728521049078,0.21464226,60469.0,60465.0,0.165382]
[1728521049293,0.04926726,60469.0,60466.0,0.0154916]
[1728521049512,0.04926726,60469.0,60468.0,0.165376]
[1728521049748,0.04926726,60469.0,60468.0,0.265376]
[1728521050183,0.05981951,60469.0,60468.0,0.265376]
[1728521050838,0.05981951,60469.0,60468.0,0.268376]
[1728521051257,0.01055225,60469.0,60468.0,0.271376]
[1728521051463,0.01055225,60469.0,60468.0,0.268376]
[1728521052125,0.01055225,60469.0,60468.0,0.266192]
[1728521052553,0.01055225,60469.0,60468.0,0.000816]
[1728521053214,0.01055225,60469.0,60468.0,0.166192]
[1728521053424,0.01055225,60469.0,60468.0,0.266192]
[1728521055903,0.002136,60471.0,60469.0,0.165372]
[1728521057374,0.002136,60471.0,60470.0,0.165371]
[1728521057585,0.003136,60471.0,60470.0,0.165371]
[1728521058274,0.004136,60471.0,60470.0,0.165371]
[1728521058487,0.004136,60471.0,60468.0,0.16619]
[1728521058932,0.004136,60471.0,60469.0,0.165373]
[1728521060251,0.006136,60471.0,60469.0,0.165373]
[1728521060688,0.004136,60471.0,60470.0,0.165371]
[1728521060909,0.002136,60471.0,60470.0,0.165371]
[1728521061861,0.003136,60471.0,60470.0,0.165371]
[1728521062074,0.004136,60471.0,60470.0,0.165371]
[1728521062483,0.003136,60471.0,60470.0,0.165371]
[1728521062701,0.005136,60471.0,60470.0,0.165371]
[1728521065296,0.01563188,60471.0,60470.0,0.165371]
[1728521066892,0.06486293,60471.0,60470.0,0.165371]
[1728521067119,0.06486293,60471.0,60469.0,0.000816]
[1728521067357,0.01563188,60471.0,60469.0,0.166189]
[1728521067575,0.06486293,60471.0,60469.0,0.166189]
[1728521067782,0.06486293,60471.0,60470.0,0.165371]
[1728521068259,0.06186293,60471.0,60470.0,0.165371]
[1728521068491,0.06386293,60471.0,60470.0,0.165371]
[1728521068918,0.06186293,60471.0,60470.0,0.165371]
[1728521069140,0.06286293,60471.0,60470.0,0.165371]
[1728521069410,0.06486293,60471.0,60470.0,0.165371]
[1728521070473,0.06486293,60471.0,60469.0,0.166189]
[1728521071171,0.06486293,60471.0,60470.0,0.165371]
[1728521071385,0.01263188,60471.0,60470.0,0.165371]
[1728521071601,0.01363188,60471.0,60470.0,0.165371]
[1728521071814,0.01463188,60471.0,60470.0,0.165371]
[1728521072042,0.01263188,60471.0,60470.0,0.165371]
[1728521072258,0.01363188,60471.0,60470.0,0.165371]
[1728521072466,0.08951212,60471.0,60470.0,0.165371]
[1728521073543,0.08951212,60471.0,60469.0,0.166189]
[1728521074178,0.08737612,60471.0,60469.0,0.166189]
[1728521074427,0.08751212,60471.0,60469.0,0.166189]
[1728521074606,0.07388024,60470.0,60469.0,0.166189]
[1728521075026,0.08437612,60470.0,60469.0,0.166189]
[1728521075662,0.08537612,60470.0,60469.0,0.166189]
[1728521075901,0.08637612,60470.0,60469.0,0.166189]
[1728521078236,0.08637612,60470.0,60469.0,0.18170513]
[1728521078581,0.08637612,60470.0,60469.0,0.166189]
[1728521078822,0.08637612,60470.0,60469.0,0.18170513]
[1728521079083,0.08637612,60470.0,60469.0,0.26000513]
[1728521079596,0.07588024,60470.0,60469.0,0.26000513]
[1728521079846,0.05127882,60470.0,60469.0,0.26000513]
[1728521080062,0.06173735,60470.0,60469.0,0.26000513]
[1728521080288,0.01245853,60470.0,60469.0,0.26000513]
[1728521083492,0.01245853,60470.0,60469.0,0.244489]
[1728521083958,0.01245853,60470.0,60469.0,0.2600034]
[1728521084447,0.01245853,60470.0,60469.0,0.26000328]
[1728521086853,0.01245853,60470.0,60469.0,0.26000258]
[1728521088566,0.06175207,60470.0,60469.0,0.26000258]
[1728521089105,0.06175207,60470.0,60469.0,0.38300258]
[1728521089341,0.29763174,60480.0,60479.0,0.1]
[1728521089609,0.29763174,60480.0,60479.0,1.20694236]
[1728521089610,0.2483382,60480.0,60479.0,1.20694236]
[1728521089863,0.29901565,60487.0,60485.0,0.26533]
[1728521089864,0.24972211,60487.0,60485.0,0.26533]
[1728521090148,0.24972211,60487.0,60485.0,0.53360378]
[1728521090402,0.00138391,60487.0,60485.0,0.5491087]
[1728521091377,0.00138391,60487.0,60485.0,0.5511087]
[1728521091616,0.00138391,60487.0,60485.0,0.6562387]
[1728521091864,0.00138391,60487.0,60485.0,0.6792387]
[1728521092108,0.00138391,60487.0,60485.0,0.6812387]
[1728521093560,0.00138391,60487.0,60485.0,0.68119378]
[1728521093786,0.00138391,60487.0,60485.0,0.66573378]
[1728521095709,0.00138391,60487.0,60485.0,0.67728545]
[1728521098496,0.00138391,60487.0,60485.0,0.35978167]
[1728521098718,0.00138391,60487.0,60485.0,0.28088167]
[1728521101770,0.00138391,60487.0,60485.0,0.11555167]
[1728521102002,0.00138391,60487.0,60485.0,0.004]
[1728521102003,0.51633264,60486.0,60485.0,0.004]
[1728521102218,0.002136,60480.0,60478.0,0.165348]
[1728521102457,0.002136,60480.0,60479.0,0.165346]
[1728521102719,0.002136,60480.0,60478.0,0.165348]
[1728521102952,0.01450148,60480.0,60478.0,0.165348]
[1728521103185,0.01450148,60480.0,60479.0,0.165346]
[1728521103849,0.01450148,60480.0,60478.0,0.01154431]
[1728521104097,0.17533912,60480.0,60478.0,0.01154431]
[1728521104312,0.165347,60479.0,60476.0,0.1]
[1728521104534,0.17533912,60480.0,60476.0,0.1]
[1728521104762,0.01235628,60478.0,60476.0,0.1]
[1728521105204,0.32831764,60480.0,60477.0,0.16535]
[1728521105893,0.32831764,60480.0,60476.0,0.112]
[1728521106107,0.32831764,60480.0,60476.0,0.277354]
[1728521106785,0.165347,60479.0,60476.0,0.106]
[1728521107002,0.32831764,60480.0,60476.0,0.006]
[1728521107223,0.16297364,60480.0,60477.0,0.16535]
[1728521107450,0.16297364,60480.0,60475.0,0.0116115]
[1728521107671,0.32931764,60480.0,60477.0,0.003]
[1728521107975,0.165346,60479.0,60477.0,0.003]
[1728521108193,0.165346,60479.0,60476.0,0.165354]
[1728521108418,0.33231764,60480.0,60476.0,0.165354]
[1728521108635,0.37947435,60480.0,60476.0,0.165354]
[1728521108856,0.37747435,60480.0,60476.0,0.165354]
[1728521109067,0.37747435,60480.0,60471.0,0.1]
[1728521109068,0.165361,60474.0,60471.0,0.1]
[1728521109301,0.167493,60475.0,60471.0,0.265367]
[1728521109516,0.002136,60475.0,60472.0,0.165364]
[1728521109953,0.002136,60475.0,60470.0,0.330742]
[1728521109954,0.002136,60475.0,60474.0,0.16536]
[1728521110412,0.01449228,60475.0,60474.0,0.16536]
[1728521110660,0.002136,60476.0,60475.0,0.165357]
[1728521110881,0.002136,60477.0,60474.0,0.0764]
[1728521111111,0.002136,60477.0,60476.0,0.165354]
[1728521111338,0.002136,60476.0,60474.0,0.40912]
[1728521111548,0.002136,60476.0,60475.0,0.165357]
[1728521112258,0.002136,60477.0,60475.0,0.165357]
[1728521112490,0.04915383,60482.0,60480.0,0.1]
[1728521112710,0.07373075,60483.0,60480.0,0.1]
[1728521112711,0.04915383,60483.0,60482.0,0.165338]
[1728521112983,0.04915383,60484.0,60483.0,0.165335]
[1728521113174,0.04915383,60485.0,60484.0,0.165332]
[1728521113390,1.26060775,60486.0,60485.0,0.16533]
[1728521113391,1.186877,60486.0,60485.0,0.16533]
[1728521113638,1.189013,60486.0,60485.0,0.24213]
[1728521115409,1.192013,60486.0,60485.0,0.24313]
[1728521116103,1.192013,60486.0,60485.0,0.001]
[1728521116341,1.194013,60486.0,60485.0,0.002]
[1728521117223,1.194013,60486.0,60485.0,0.16733]
[1728521119905,1.191877,60486.0,60485.0,0.45670378]
[1728521120134,1.191877,60486.0,60485.0,0.53510378]
[1728521120363,1.191877,60486.0,60485.0,0.94162378]
[1728521120580,1.191877,60486.0,60485.0,1.13362378]
[1728521120826,1.188877,60486.0,60485.0,1.13262378]
[1728521121067,1.188877,60486.0,60485.0,1.13748778]
[1728521121293,1.186877,60486.0,60485.0,1.13648778]
[1728521121524,1.186877,60486.0,60485.0,1.13848778]
[1728521124926,1.186877,60486.0,60485.0,1.13930378]
[1728521125172,1.186877,60486.0,60485.0,0.75578378]
[1728521125418,1.1976644,60486.0,60485.0,0.75578378]
[1728521125899,1.1976644,60486.0,60485.0,2.19066278]
[1728521126152,1.1976644,60486.0,60485.0,1.35812678]
[1728521126614,1.1976644,60486.0,60485.0,0.96480478]
[1728521135032,1.1976644,60486.0,60485.0,1.12564242]
[1728521135274,0.45915267,60486.0,60485.0,1.12564242]
[1728521135985,0.45915267,60486.0,60485.0,0.91462142]
[1728521136213,0.45915267,60486.0,60485.0,0.92462142]
[1728521136678,0.45915267,60486.0,60485.0,3.62155442]
[1728521136898,0.44836527,60486.0,60485.0,4.32611342]
[1728521137117,0.44999727,60486.0,60485.0,3.83171342]
[1728521137366,0.44999727,60486.0,60485.0,3.82371342]
[1728521137624,0.44237188,60486.0,60485.0,3.83371342]
[1728521138048,0.44237188,60486.0,60485.0,3.84371342]
[1728521138263,0.38933427,60486.0,60485.0,3.84371342]
[1728521139402,0.38933427,60486.0,60485.0,3.63444542]
[1728521139622,0.38933427,60486.0,60485.0,3.32843742]
[1728521139840,0.38933427,60486.0,60485.0,3.09731842]
[1728521141209,0.38933427,60486.0,60485.0,0.286146]
[1728521141425,0.38933427,60486.0,60485.0,0.186146]
[1728521141673,0.4001706,60486.0,60485.0,0.186146]
[1728521142125,0.4001706,60486.0,60485.0,0.176146]
[1728521142563,0.4001706,60486.0,60485.0,0.186146]
[1728521143011,0.4001706,60486.0,60485.0,0.286146]
[1728521143261,0.4001706,60486.0,60485.0,0.266146]
[1728521143692,0.4001706,60486.0,60485.0,0.272146]
[1728521143924,0.4001706,60486.0,60485.0,0.269146]
[1728521144585,0.4001706,60486.0,60485.0,0.271146]
[1728521144817,0.4001706,60486.0,60485.0,0.269146]
[1728521145227,0.4021706,60486.0,60485.0,0.269146]
[1728521145696,0.4021706,60486.0,60485.0,0.266146]
[1728521145925,0.4021706,60486.0,60485.0,0.268146]
[1728521146659,0.4021706,60486.0,60485.0,0.166146]
[1728521147142,0.4041706,60486.0,60485.0,0.166146]
[1728521150062,0.4041706,60486.0,60485.0,0.70797733]
[1728521150314,0.4041706,60486.0,60485.0,0.525326]
[1728521150564,0.4041706,60486.0,60485.0,0.487975]
[1728521151783,0.4041706,60486.0,60485.0,0.000816]
[1728521152012,0.7578336,60486.0,60485.0,0.000816]
[1728521152476,0.5925066,60486.0,60485.0,0.166146]
[1728521153435,0.4063066,60486.0,60485.0,0.166146]
[1728521154188,0.4041706,60486.0,60485.0,0.166146]
[1728521159784,0.6509336,60486.0,60485.0,0.000816]
[1728521160490,1.28393795,60486.0,60485.0,0.000816]
[1728521160709,0.002136,60474.0,60473.0,0.330725]
[1728521160944,0.002136,60474.0,60470.0,0.33074]
[1728521161390,0.01057652,60473.0,60469.0,0.000816]
[1728521161610,0.01271252,60473.0,60472.0,0.165365]
[1728521161839,0.17355016,60473.0,60471.0,0.165368]
[1728521162051,0.33891316,60473.0,60470.0,0.0001]
[1728521162268,0.17355016,60473.0,60470.0,0.16547]
[1728521162485,0.33891416,60473.0,60470.0,0.0001]
[1728521162702,0.33991416,60473.0,60470.0,0.0001]
[1728521163134,0.17455016,60473.0,60470.0,0.1001]
[1728521164040,0.17355016,60473.0,60470.0,0.1001]
[1728521164539,0.17355016,60473.0,60470.0,0.1021]
[1728521164766,0.167504,60471.0,60470.0,0.0021]
[1728521165019,0.32834164,60471.0,60470.0,0.0021]
[1728521165481,0.22257201,60471.0,60470.0,0.0001]
[1728521165712,0.33878974,60471.0,60470.0,0.0001]
[1728521165948,0.33878974,60471.0,60470.0,0.0011]
[1728521166864,0.17342174,60471.0,60470.0,0.0011]
[1728521167115,0.17342174,60471.0,60470.0,0.165471]
[1728521167345,0.17642174,60471.0,60470.0,0.166471]
[1728521167577,0.18042174,60471.0,60470.0,0.0021]
[1728521168919,0.34578974,60471.0,60470.0,0.0021]
[1728521170992,0.61898974,60471.0,60470.0,0.0021]
[1728521171448,0.66814001,60471.0,60470.0,0.002916]
[1728521171659,0.61898974,60471.0,60470.0,0.002916]
[1728521172999,0.65020658,60471.0,60470.0,0.002916]
[1728521173214,0.65020658,60471.0,60468.0,0.000816]
[1728521173215,0.174509,60469.0,60468.0,0.000816]
[1728521173447,1.03216136,60469.0,60468.0,0.000816]
[1728521173695,1.04232972,60469.0,60468.0,0.000816]
[1728521173912,1.29565445,60469.0,60468.0,0.000816]
[1728521174125,1.18931676,60469.0,60468.0,0.000816]
[1728521174568,1.20613633,60469.0,60468.0,0.001816]
[1728521174840,1.20313633,60469.0,60468.0,0.000816]
[1728521175064,1.04932972,60469.0,60468.0,0.002816]
[1728521175700,0.169529,60462.0,60461.0,0.2483382]
[1728521175913,0.165421,60452.0,60448.0,0.4137672]
[1728521176140,0.002136,60450.0,60448.0,0.4137672]
[1728521176400,0.32839964,60450.0,60448.0,0.2483382]
[1728521176642,0.01012036,60449.0,60448.0,0.165431]
[1728521176899,0.01012036,60449.0,60448.0,0.596293]
[1728521177113,0.01012036,60449.0,60448.0,0.597293]
[1728521177610,0.01012036,60449.0,60448.0,0.265431]
[1728521177874,0.01012036,60449.0,60444.0,0.000817]
[1728521177875,0.167575,60445.0,60444.0,0.000817]
[1728521178104,0.60068642,60445.0,60444.0,0.000817]
[1728521178328,0.61074724,60445.0,60444.0,0.000817]
[1728521178560,0.61574724,60445.0,60444.0,0.000817]
[1728521179342,1.01291386,60445.0,60444.0,0.000817]
[1728521179559,0.61774724,60445.0,60444.0,0.000817]
[1728521180034,0.62474724,60445.0,60444.0,0.001817]
[1728521180488,0.61574724,60445.0,60444.0,0.000817]
[1728521180724,0.63174724,60445.0,60444.0,0.001817]
[1728521181195,0.63174724,60445.0,60444.0,0.002817]
[1728521181468,0.63174724,60445.0,60444.0,0.001817]
[1728521181469,0.62574724,60445.0,60444.0,0.001817]
[1728521181671,0.61774724,60445.0,60444.0,0.000817]
[1728521181909,0.61774724,60445.0,60444.0,0.001817]
[1728521181910,0.63174724,60445.0,60444.0,0.001817]
[1728521182794,0.64574724,60445.0,60444.0,0.002817]
[1728521183895,0.64374724,60445.0,60444.0,0.002817]
[1728521184325,0.64574724,60445.0,60444.0,0.002817]
[1728521185668,0.64574724,60445.0,60428.0,0.4138242]
[1728521185669,0.002136,60429.0,60428.0,0.4138242]
[1728521186094,0.002136,60429.0,60428.0,0.2483382]
[1728521186306,0.01175878,60429.0,60427.0,0.165487]
[1728521186544,0.01175878,60429.0,60426.0,0.330982]
[1728521186545,0.002136,60429.0,60426.0,0.330982]
[1728521186775,0.00962278,60428.0,60425.0,0.000817]
[1728521187000,0.00962278,60428.0,60426.0,0.16549]
[1728521187464,0.002136,60427.0,60426.0,0.16549]
[1728521188130,0.01175878,60427.0,60426.0,0.16549]
[1728521188338,0.002136,60427.0,60426.0,0.16549]
[1728521188757,0.003136,60427.0,60426.0,0.16549]
[1728521188963,0.01275878,60427.0,60426.0,0.16549]
[1728521189173,0.003136,60427.0,60426.0,0.16549]
[1728521189386,0.01275878,60427.0,60426.0,0.16549]
[1728521189597,0.003136,60427.0,60426.0,0.16549]
[1728521190863,0.004136,60427.0,60426.0,0.16549]
[1728521191498,0.004136,60427.0,60426.0,0.24409]
[1728521191718,0.002,60427.0,60426.0,0.24409]
[1728521194437,0.002,60427.0,60426.0,0.244907]
[1728521196278,0.002,60427.0,60426.0,0.799364]
[1728521196463,0.002,60427.0,60426.0,0.81477652]
[1728521197402,0.002,60427.0,60426.0,0.54041952]
[1728521199211,0.01155108,60427.0,60426.0,0.54041952]
[1728521199427,0.002,60427.0,60426.0,0.54041952]
[1728521200110,0.002,60427.0,60426.0,0.57885953]
[1728521200343,0.002,60427.0,60426.0,0.86761553]
[1728521201009,0.002,60427.0,60426.0,0.836763]
[1728521201237,0.002,60427.0,60426.0,0.8676639]
[1728521201470,0.001,60427.0,60426.0,0.8676639]
[1728521201709,0.2483382,60436.0,60435.0,0.165467]
[1728521201929,0.2483382,60436.0,60435.0,0.18091745]
[1728521202148,0.00960817,60436.0,60435.0,0.18091745]
[1728521202581,0.01174417,60436.0,60435.0,0.18091745]
[1728521203486,0.01574417,60436.0,60435.0,0.18091745]
[1728521204404,0.006136,60436.0,60435.0,0.18091745]
[1728521204628,0.004,60436.0,60435.0,0.26411745]
[1728521206467,0.004,60436.0,60435.0,0.2915521]
[1728521206921,0.004,60436.0,60435.0,0.4755521]
[1728521207167,0.004,60436.0,60435.0,1.10276588]
[1728521207841,0.004,60436.0,60435.0,1.00214788]
[1728521208101,0.004,60436.0,60435.0,1.00215069]
[1728521208318,0.004,60436.0,60435.0,0.81277691]
[1728521208746,0.004,60436.0,60435.0,0.81359391]
[1728521213546,0.004,60436.0,60435.0,1.16380533]
[1728521214009,0.00382314,60436.0,60435.0,1.16380533]
[1728521214246,0.00382314,60436.0,60435.0,0.96445391]
[1728521214489,0.00382314,60436.0,60435.0,0.87668391]
[1728521214976,0.00482314,60436.0,60435.0,0.88268391]
[1728521215223,0.00482314,60436.0,60435.0,0.86721092]
[1728521215459,0.001,60436.0,60435.0,0.86721092]
[1728521215700,0.001,60436.0,60435.0,0.88268728]
[1728521215967,0.001,60436.0,60435.0,1.07206106]
[1728521216392,0.001,60436.0,60435.0,1.03624506]
[1728521216884,0.002,60436.0,60435.0,1.04524506]
[1728521217138,0.002,60436.0,60435.0,0.43037528]
[1728521218715,0.002,60436.0,60435.0,0.43037236]
[1728521219398,0.002,60436.0,60435.0,0.56577236]
[1728521220548,0.002,60436.0,60435.0,0.43037236]
[1728521221661,0.002,60436.0,60435.0,0.4303793]
[1728521222151,0.002,60436.0,60435.0,0.30870093]
[1728521222378,0.002,60436.0,60435.0,0.29322256]
[1728521222598,0.002,60436.0,60435.0,0.30870495]
[1728521222821,0.01182963,60436.0,60435.0,0.29322256]
[1728521223034,0.002,60436.0,60435.0,0.29322256]
[1728521223262,0.01182963,60436.0,60435.0,0.29322256]
[1728521223480,0.002,60436.0,60435.0,0.29322256]
[1728521223703,0.01182963,60436.0,60435.0,0.29322256]
[1728521223918,0.002,60436.0,60435.0,0.29322256]
[1728521224138,0.01182963,60436.0,60435.0,0.29322256]
[1728521224323,0.002,60436.0,60435.0,0.3087078]
[1728521224558,0.01177554,60436.0,60435.0,0.3087078]
[1728521224783,0.002,60436.0,60435.0,0.3087078]
[1728521225266,0.002,60436.0,60435.0,0.29322256]
[1728521225489,0.002,60436.0,60435.0,0.29677239]
[1728521225719,0.002,60436.0,60435.0,0.31226404]
[1728521225974,0.01177554,60436.0,60435.0,0.29677239]
[1728521226446,0.46273399,60436.0,60435.0,0.03130539]
[1728521226685,0.46273399,60436.0,60430.0,0.165479]
[1728521226686,0.35639386,60436.0,60430.0,0.165479]
[1728521226923,0.04920743,60431.0,60430.0,0.165479]
[1728521227177,0.05134343,60431.0,60430.0,0.165479]
[1728521227414,0.06103236,60431.0,60430.0,0.165479]
[1728521227882,0.06103134,60431.0,60430.0,0.165479]
[1728521228332,0.06103134,60431.0,60430.0,0.166479]
[1728521228622,0.06103134,60431.0,60430.0,0.001]
[1728521229612,0.06103134,60431.0,60430.0,0.16648]
[1728521231840,0.01182493,60431.0,60430.0,0.16648]
[1728521232061,0.0610308,60431.0,60430.0,0.16648]
[1728521233050,0.01182493,60431.0,60430.0,0.16648]
[1728521233309,0.06103085,60431.0,60430.0,0.16648]
[1728521233540,0.00968893,60431.0,60430.0,0.24678]
[1728521233774,0.00968893,60431.0,60430.0,0.65203]
[1728521234011,0.05134192,60437.0,60436.0,0.165464]
[1728521234252,0.04920592,60438.0,60437.0,0.165461]
[1728521234497,0.07594714,60440.0,60437.0,0.410722]
[1728521234498,0.002136,60440.0,60437.0,0.410722]
[1728521234760,0.04920592,60442.0,60440.0,0.165453]
[1728521235031,0.001634,60444.0,60443.0,0.165445]
[1728521236215,0.002136,60442.0,60441.0,0.16545]
[1728521236423,0.002136,60441.0,60440.0,0.165452]
[1728521236644,0.002136,60441.0,60440.0,0.165453]
[1728521237301,0.05134765,60441.0,60440.0,0.165453]
[1728521237530,0.002136,60441.0,60440.0,0.165453]
[1728521238434,0.05018303,60442.0,60441.0,0.26545]
[1728521238654,0.001,60442.0,60441.0,0.26545]
[1728521240343,0.002,60442.0,60441.0,0.26545]
[1728521244201,0.002,60442.0,60441.0,0.34325]
[1728521245385,0.01170124,60442.0,60441.0,0.34325]
[1728521245608,0.002,60442.0,60441.0,0.34325]
[1728521245843,0.01170124,60442.0,60441.0,0.34325]
[1728521246273,0.01170124,60442.0,60441.0,0.26545]
[1728521246274,0.01170124,60442.0,60441.0,0.26545]
[1728521248003,0.01333524,60442.0,60441.0,0.26545]
[1728521255025,0.00377,60444.0,60442.0,0.98666476]
[1728521255234,0.00377,60444.0,60443.0,0.165445]
[1728521256244,0.00677,60444.0,60443.0,0.165445]
[1728521256657,0.00377,60444.0,60443.0,0.165445]
[1728521256878,0.00977,60444.0,60443.0,0.165445]
[1728521257539,0.05685442,60444.0,60443.0,0.165445]
[1728521257748,0.007634,60444.0,60443.0,0.244645]
[1728521258378,0.004634,60444.0,60443.0,0.267645]
[1728521258602,0.004634,60444.0,60443.0,0.566174]
[1728521258808,0.007634,60444.0,60443.0,0.91701164]
[1728521259434,0.001634,60444.0,60443.0,0.91701164]
[1728521259675,0.002634,60444.0,60443.0,0.92101164]
[1728521259889,0.003634,60444.0,60443.0,0.92301164]
[1728521260104,0.002634,60444.0,60443.0,0.91901164]
[1728521260752,0.002634,60444.0,60443.0,0.92187564]
[1728521260963,0.001634,60444.0,60443.0,0.91987564]
[1728521262023,0.001634,60444.0,60443.0,0.92287564]
[1728521262024,0.002634,60444.0,60443.0,0.92287564]
[1728521262195,0.003634,60444.0,60443.0,0.92387564]
[1728521263181,0.003634,60444.0,60443.0,0.92587564]
[1728521263411,0.2483382,60456.0,60455.0,0.56028578]
[1728521263615,0.2483382,60456.0,60455.0,0.80909878]
[1728521264042,0.001634,60459.0,60455.0,0.80909878]
[1728521264043,0.001634,60459.0,60458.0,0.265404]
[1728521264256,0.001634,60459.0,60458.0,0.949998]
[1728521264496,0.001634,60459.0,60458.0,1.051698]
[1728521264713,0.001634,60459.0,60458.0,0.831481]
[1728521265621,0.001634,60459.0,60458.0,0.732903]
[1728521265856,0.001634,60459.0,60458.0,0.7229]
[1728521266079,0.004634,60459.0,60458.0,0.65709]
[1728521266529,0.001634,60459.0,60458.0,0.66109]
[1728521266811,0.001634,60459.0,60458.0,0.66409]
[1728521267519,0.001634,60459.0,60458.0,0.007]
[1728521267737,0.00377,60459.0,60458.0,0.007]
[1728521267964,0.00377,60459.0,60458.0,0.172404]
[1728521267965,0.01214814,60459.0,60458.0,0.172404]
[1728521268630,0.01214814,60459.0,60458.0,0.007]
[1728521268857,0.00377,60459.0,60458.0,0.172404]
[1728521269276,0.01214814,60459.0,60458.0,0.172404]
[1728521269489,0.00377,60459.0,60458.0,0.172404]
[1728521269727,0.01214814,60459.0,60458.0,0.172404]
[1728521269950,0.00377,60459.0,60458.0,0.172404]
[1728521270167,0.01214814,60459.0,60458.0,0.172404]
[1728521271088,0.01214814,60459.0,60458.0,0.007]
[1728521271577,0.01214814,60459.0,60458.0,0.003]
[1728521272033,0.01214814,60459.0,60458.0,0.001]
[1728521272251,0.17754914,60459.0,60458.0,0.002]
[1728521272464,0.33838678,60459.0,60458.0,0.001]
[1728521272758,0.002136,60457.0,60453.0,0.430831]
[1728521272956,0.002136,60457.0,60455.0,0.1]
[1728521273191,0.00837814,60456.0,60455.0,0.165411]
[1728521273433,0.00837814,60456.0,60453.0,0.44268762]
[1728521273649,0.00837814,60456.0,60455.0,0.165412]
[1728521273888,0.00837814,60456.0,60455.0,0.1]
[1728521274106,0.17378714,60456.0,60455.0,0.1]
[1728521274332,0.002136,60455.0,60453.0,0.01185462]
[1728521274571,0.002136,60455.0,60454.0,0.265415]
[1728521274810,0.01051414,60455.0,60454.0,0.265415]
[1728521275022,0.01051414,60455.0,60454.0,0.1]
[1728521275241,0.01051414,60455.0,60454.0,0.265415]
[1728521276116,0.01051414,60455.0,60454.0,0.269415]
[1728521276337,0.01051414,60455.0,60454.0,0.273415]
[1728521276620,0.31080865,60461.0,60454.0,0.108]
[1728521276864,0.18937378,60465.0,60454.0,0.008]
[1728521276865,0.2483382,60460.0,60454.0,0.008]
[1728521277090,0.1654,60460.0,60455.0,0.165411]
[1728521277308,0.330792,60461.0,60455.0,0.165411]
[1728521277526,0.496189,60461.0,60455.0,0.165411]
[1728521277735,0.330792,60461.0,60454.0,0.104]
[1728521277959,0.49619,60461.0,60455.0,0.165411]
[1728521278166,0.165397,60461.0,60455.0,0.165409]
[1728521278381,0.165393,60462.0,60456.0,0.165406]
[1728521278591,0.166397,60461.0,60456.0,0.165406]
[1728521278811,0.166397,60461.0,60456.0,0.165409]
[1728521279449,0.16383764,60462.0,60454.0,0.1]
[1728521279652,0.32923164,60462.0,60457.0,0.165406]
[1728521279885,0.003,60461.0,60457.0,0.165406]
[1728521280103,0.003,60461.0,60455.0,0.330822]
[1728521280104,0.003,60461.0,60454.0,0.1]
[1728521280344,0.330797,60460.0,60454.0,0.1]
[1728521280561,0.165401,60459.0,60454.0,0.165413]
[1728521280774,0.165399,60460.0,60455.0,0.165411]
[1728521281202,0.002,60461.0,60457.0,0.165406]
[1728521281415,0.004,60461.0,60457.0,0.165406]
[1728521281699,0.07371514,60466.0,60452.0,0.1]
[1728521281938,0.2483382,60466.0,60454.0,0.002]
[1728521282151,0.07381369,60469.0,60467.0,0.165378]
[1728521282386,0.26371369,60472.0,60463.0,0.0826]
[1728521282611,0.07381369,60472.0,60469.0,0.165372]
[1728521283048,0.07381369,60473.0,60465.0,0.330768]
[1728521283277,0.165363,60473.0,60467.0,0.330756]
[1728521283511,0.165363,60473.0,60468.0,0.165374]
[1728521283729,0.165355,60476.0,60470.0,0.165368]
[1728521283937,0.4136932,60476.0,60467.0,0.330758]
[1728521284158,0.4136952,60476.0,60471.0,0.165367]
[1728521284368,0.165383,60466.0,60459.0,0.1]
[1728521284578,0.18937378,60472.0,60459.0,0.1]
[1728521284579,0.165376,60468.0,60467.0,0.001]
[1728521284788,0.013,60469.0,60467.0,0.001]
[1728521285024,0.165376,60468.0,60467.0,0.001]
[1728521285238,0.1899,60470.0,60461.0,0.1]
[1728521285463,0.1899,60470.0,60467.0,0.001]
[1728521285695,0.355273,60470.0,60464.0,0.165386]
[1728521285904,0.165374,60469.0,60464.0,0.165385]
[1728521286120,0.1899,60470.0,60461.0,0.1]
[1728521286332,0.005,60468.0,60461.0,0.1]
[1728521286552,0.005,60468.0,60464.0,0.165387]
[1728521286757,0.005,60468.0,60462.0,0.330783]
[1728521286758,0.05420319,60468.0,60463.0,0.16539]
[1728521286990,0.05420319,60468.0,60461.0,0.1]
[1728521287199,0.05420319,60468.0,60464.0,0.165387]
[1728521287412,0.05420319,60468.0,60464.0,0.165386]
[1728521287632,0.04920319,60468.0,60464.0,0.165387]
[1728521287842,0.04920319,60468.0,60464.0,0.001]
[1728521288069,0.04920319,60468.0,60464.0,0.165386]
[1728521288509,0.05320319,60468.0,60464.0,0.165386]
[1728521288737,0.05320319,60468.0,60461.0,0.1]
[1728521288963,0.05320319,60468.0,60464.0,0.165386]
[1728521288964,0.04920319,60467.0,60464.0,0.165386]
[1728521289190,0.04920319,60467.0,60459.0,0.01147158]
[1728521289434,0.33076,60467.0,60458.0,0.4309382]
[1728521289664,0.165382,60466.0,60461.0,0.165394]
[1728521290309,0.05620319,60468.0,60465.0,0.165384]
[1728521290527,0.165384,60466.0,60460.0,0.265396]